[Event "Titled Tuesday Blitz February 28 Late 2023"]
[White "Szente Varga, Fruzsina"]
[Black "Ferreira, Vitor Hugo Vieira"]
[WhiteFideId "712264"]
[BlackFideId "2119765"]
[WhiteElo "1994"]
[BlackElo "2146"]
[Result "0-1"]
[Round "07"]
[TimeControl "180+2"]
[Date "2023.02.28"]
[WhiteClock "0:00:04"]
[BlackClock "0:00:55"]

1. e4 {[%clk 0:03:00]}  c5 {[%clk 0:03:00]} 2. Nf3 {[%clk 0:03:00]}  d6 {[%clk 0:03:00]} 3. d4 {[%clk 0:02:59]}  cxd4 {[%clk 0:03:01]} 4. Qxd4 {[%clk 0:02:59]}  Nc6 {[%clk 0:03:01]} 5. Bb5 {[%clk 0:02:58]}  Bd7 {[%clk 0:03:02]} 6. Qd3 {[%clk 0:02:58]}  Rc8 {[%clk 0:02:59]} 7. c4 {[%clk 0:02:57]}  Nb4 {[%clk 0:02:39]} 8. Bxd7+ {[%clk 0:02:50]}  Qxd7 {[%clk 0:02:40]} 9. Qe2 {[%clk 0:02:50]}  Qc6 {[%clk 0:02:37]} 10. a3 {[%clk 0:02:32]}  Qxc4 {[%clk 0:02:37]} 11. axb4 {[%clk 0:02:10]}  Qxc1+ {[%clk 0:02:34]} 12. Qd1 {[%clk 0:02:11]}  Qxb2 {[%clk 0:02:28]} 13. Nbd2 {[%clk 0:02:11]}  a6 {[%clk 0:02:23]} 14. Rb1 {[%clk 0:02:08]}  Qc2 {[%clk 0:02:21]} 15. O-O {[%clk 0:02:00]}  Qxd1 {[%clk 0:02:20]} 16. Rfxd1 {[%clk 0:02:01]}  Nf6 {[%clk 0:02:20]} 17. b5 {[%clk 0:02:00]}  a5 {[%clk 0:02:18]} 18. b6 {[%clk 0:02:00]}  e6 {[%clk 0:02:10]} 19. Rb5 {[%clk 0:01:59]}  Ra8 {[%clk 0:02:09]} 20. Ra1 {[%clk 0:01:59]}  a4 {[%clk 0:02:06]} 21. Nd4 {[%clk 0:01:26]}  d5 {[%clk 0:01:59]} 22. exd5 {[%clk 0:01:07]}  Nxd5 {[%clk 0:01:58]} 23. Ne4 {[%clk 0:00:57]}  Kd7 {[%clk 0:01:43]} 24. Ng5 {[%clk 0:00:39]}  Bb4 {[%clk 0:01:19]} 25. Nxf7 {[%clk 0:00:31]}  Bc3 {[%clk 0:01:18]} 26. Rd1 {[%clk 0:00:15]}  Rhc8 {[%clk 0:01:06]} 27. Ne5+ {[%clk 0:00:15]}  Kd6 {[%clk 0:01:05]} 28. Nxe6 {[%clk 0:00:12]}  Kxe6 {[%clk 0:01:01]} 29. Rdxd5 {[%clk 0:00:10]}  a3 {[%clk 0:00:57]} 30. Nd3 {[%clk 0:00:04]}  a2 {[%clk 0:00:55]} 0-1


[Site "https://www.chess.com"]

[Event "Titled Tuesday Blitz February 28 Late 2023"]
[White "Mazurkiewicz, Michal"]
[Black "Tsyhanchuk, Stanislav"]
[WhiteFideId "1124943"]
[BlackFideId "13505130"]
[WhiteElo "2054"]
[BlackElo "2173"]
[Result "1-0"]
[Round "07"]
[TimeControl "180+2"]
[Date "2023.02.28"]
[WhiteClock "0:00:08"]
[BlackClock "0:00:06"]

1. e4 {[%clk 0:02:58]}  c5 {[%clk 0:02:59]} 2. Nf3 {[%clk 0:02:59]}  d6 {[%clk 0:02:59]} 3. g3 {[%clk 0:02:59]}  Nf6 {[%clk 0:02:56]} 4. d3 {[%clk 0:02:59]}  Nc6 {[%clk 0:02:55]} 5. Bg2 {[%clk 0:02:59]}  g6 {[%clk 0:02:56]} 6. O-O {[%clk 0:02:58]}  Bg7 {[%clk 0:02:56]} 7. Re1 {[%clk 0:02:58]}  O-O {[%clk 0:02:54]} 8. e5 {[%clk 0:02:58]}  dxe5 {[%clk 0:02:54]} 9. Nxe5 {[%clk 0:02:59]}  Nxe5 {[%clk 0:02:54]} 10. Rxe5 {[%clk 0:03:00]}  Bg4 {[%clk 0:02:42]} 11. Qe1 {[%clk 0:02:59]}  e6 {[%clk 0:02:19]} 12. Nc3 {[%clk 0:02:46]}  b6 {[%clk 0:01:49]} 13. h3 {[%clk 0:02:42]}  Bf5 {[%clk 0:01:45]} 14. g4 {[%clk 0:02:43]}  Nxg4 {[%clk 0:01:41]} 15. hxg4 {[%clk 0:02:43]}  Bxe5 {[%clk 0:01:41]} 16. Qxe5 {[%clk 0:02:43]}  Bxg4 {[%clk 0:01:40]} 17. Bxa8 {[%clk 0:02:41]}  Qxa8 {[%clk 0:01:41]} 18. Bh6 {[%clk 0:02:33]}  f6 {[%clk 0:01:40]} 19. Qe4 {[%clk 0:02:34]}  Qxe4 {[%clk 0:01:35]} 20. Nxe4 {[%clk 0:02:33]}  Rf7 {[%clk 0:01:33]} 21. a4 {[%clk 0:02:29]}  g5 {[%clk 0:01:31]} 22. a5 {[%clk 0:02:29]}  b5 {[%clk 0:01:14]} 23. a6 {[%clk 0:02:29]}  Bf3 {[%clk 0:00:55]} 24. Ra5 {[%clk 0:02:27]}  Bxe4 {[%clk 0:00:36]} 25. dxe4 {[%clk 0:02:28]}  Rc7 {[%clk 0:00:27]} 26. Rxb5 {[%clk 0:02:27]}  Rc6 {[%clk 0:00:27]} 27. Rb8+ {[%clk 0:02:21]}  Kf7 {[%clk 0:00:28]} 28. Bf8 {[%clk 0:02:05]}  c4 {[%clk 0:00:22]} 29. Ra8 {[%clk 0:01:40]}  Rxa6 {[%clk 0:00:20]} 30. Bc5 {[%clk 0:01:41]}  Ra1+ {[%clk 0:00:20]} 31. Kg2 {[%clk 0:01:42]}  a6 {[%clk 0:00:20]} 32. Ra7+ {[%clk 0:01:37]}  Kg6 {[%clk 0:00:20]} 33. Bf8 {[%clk 0:01:38]}  f5 {[%clk 0:00:17]} 34. e5 {[%clk 0:01:37]}  f4 {[%clk 0:00:17]} 35. Bg7 {[%clk 0:01:30]}  h5 {[%clk 0:00:13]} 36. Bf6 {[%clk 0:01:27]}  Kf5 {[%clk 0:00:13]} 37. Rg7 {[%clk 0:01:27]}  g4 {[%clk 0:00:13]} 38. Rg5+ {[%clk 0:01:27]}  Ke4 {[%clk 0:00:13]} 39. Rxh5 {[%clk 0:01:26]}  Rc1 {[%clk 0:00:13]} 40. Rg5 {[%clk 0:01:23]}  g3 {[%clk 0:00:13]} 41. fxg3 {[%clk 0:01:13]}  Rxc2+ {[%clk 0:00:13]} 42. Kh3 {[%clk 0:01:07]}  f3 {[%clk 0:00:09]} 43. Rg4+ {[%clk 0:01:03]}  Ke3 {[%clk 0:00:09]} 44. Bg5+ {[%clk 0:01:04]}  Ke2 {[%clk 0:00:09]} 45. Re4+ {[%clk 0:01:00]}  Kf1 {[%clk 0:00:07]} 46. Be3 {[%clk 0:00:35]}  Rxb2 {[%clk 0:00:06]} 47. g4 {[%clk 0:00:33]}  f2 {[%clk 0:00:04]} 48. g5 {[%clk 0:00:31]}  Rb3 {[%clk 0:00:04]} 49. Kg4 {[%clk 0:00:27]}  Kg1 {[%clk 0:00:03]} 50. Bd4 {[%clk 0:00:11]}  Rd3 {[%clk 0:00:02]} 51. Bb6 {[%clk 0:00:03]}  c3 {[%clk 0:00:02]} 52. Re2 {[%clk 0:00:02]}  Kg2 {[%clk 0:00:01]} 53. Rxf2+ {[%clk 0:00:02]}  Kg1 {[%clk 0:00:02]} 54. Rc2+ {[%clk 0:00:03]}  Kh1 {[%clk 0:00:02]} 55. g6 {[%clk 0:00:03]}  Rd2 {[%clk 0:00:01]} 56. Rc1+ {[%clk 0:00:03]}  Kh2 {[%clk 0:00:01]} 57. Be3 {[%clk 0:00:03]}  Rg2+ {[%clk 0:00:01]} 58. Kh5 {[%clk 0:00:04]}  c2 {[%clk 0:00:02]} 59. Kh6 {[%clk 0:00:03]}  a5 {[%clk 0:00:03]} 60. Bf4+ {[%clk 0:00:04]}  Kh3 {[%clk 0:00:02]} 61. g7 {[%clk 0:00:04]}  Rxg7 {[%clk 0:00:02]} 62. Kxg7 {[%clk 0:00:04]}  a4 {[%clk 0:00:03]} 63. Kf6 {[%clk 0:00:04]}  a3 {[%clk 0:00:04]} 64. Kxe6 {[%clk 0:00:05]}  a2 {[%clk 0:00:05]} 65. Kd5 {[%clk 0:00:05]}  Kg4 {[%clk 0:00:06]} 66. e6 {[%clk 0:00:05]}  Kxf4 {[%clk 0:00:06]} 67. e7 {[%clk 0:00:06]}  Ke3 {[%clk 0:00:07]} 68. e8=Q+ {[%clk 0:00:06]}  Kd2 {[%clk 0:00:08]} 69. Qe1+ {[%clk 0:00:06]}  Kd3 {[%clk 0:00:07]} 70. Ra1 {[%clk 0:00:06]}  c1=Q {[%clk 0:00:05]} 71. Qxc1 {[%clk 0:00:07]}  Ke2 {[%clk 0:00:05]} 72. Qc3 {[%clk 0:00:07]}  Kf2 {[%clk 0:00:05]} 73. Rxa2+ {[%clk 0:00:08]}  Kf1 {[%clk 0:00:06]} 74. Qa1# {[%clk 0:00:08]} 1-0


[Site "https://www.chess.com"]

[Event "Titled Tuesday Blitz February 28 Late 2023"]
[White "Torres Dominguez, David"]
[Black "Carrasco Miranda, Andres"]
[WhiteFideId "2220857"]
[BlackFideId "3405990"]
[WhiteElo "1999"]
[BlackElo "2183"]
[Result "0-1"]
[Round "07"]
[TimeControl "180+2"]
[Date "2023.02.28"]
[WhiteClock "0:00:30"]
[BlackClock "0:00:42"]

1. e4 {[%clk 0:02:57]}  c5 {[%clk 0:02:59]} 2. Nc3 {[%clk 0:02:55]}  d6 {[%clk 0:02:59]} 3. Nf3 {[%clk 0:02:53]}  Nf6 {[%clk 0:02:59]} 4. d4 {[%clk 0:02:54]}  cxd4 {[%clk 0:03:00]} 5. Nxd4 {[%clk 0:02:54]}  a6 {[%clk 0:03:00]} 6. f4 {[%clk 0:02:54]}  e5 {[%clk 0:03:00]} 7. Nf3 {[%clk 0:02:53]}  Qc7 {[%clk 0:03:00]} 8. Bd3 {[%clk 0:02:52]}  Be7 {[%clk 0:02:59]} 9. O-O {[%clk 0:02:51]}  O-O {[%clk 0:02:58]} 10. Qe1 {[%clk 0:02:50]}  Nbd7 {[%clk 0:02:54]} 11. fxe5 {[%clk 0:02:48]}  Nxe5 {[%clk 0:02:54]} 12. Nh4 {[%clk 0:02:36]}  Nfg4 {[%clk 0:02:41]} 13. h3 {[%clk 0:02:24]}  Qc5+ {[%clk 0:02:38]} 14. Kh1 {[%clk 0:02:22]}  Nf2+ {[%clk 0:02:17]} 15. Qxf2 {[%clk 0:02:12]}  Qxf2 {[%clk 0:02:17]} 16. Rxf2 {[%clk 0:02:12]}  Bxh4 {[%clk 0:02:18]} 17. Rf1 {[%clk 0:02:08]}  Be6 {[%clk 0:02:14]} 18. Bf4 {[%clk 0:02:03]}  Rfd8 {[%clk 0:01:57]} 19. Rad1 {[%clk 0:01:59]}  Rac8 {[%clk 0:01:55]} 20. Bxe5 {[%clk 0:01:47]}  dxe5 {[%clk 0:01:56]} 21. Be2 {[%clk 0:01:46]}  Rd4 {[%clk 0:01:42]} 22. Kh2 {[%clk 0:01:34]}  g6 {[%clk 0:01:39]} 23. Bd3 {[%clk 0:01:30]}  b5 {[%clk 0:01:30]} 24. Ne2 {[%clk 0:01:28]}  Rdd8 {[%clk 0:01:23]} 25. a3 {[%clk 0:01:24]}  Kg7 {[%clk 0:01:11]} 26. Ng1 {[%clk 0:01:09]}  Be7 {[%clk 0:00:55]} 27. Nf3 {[%clk 0:01:08]}  f6 {[%clk 0:00:56]} 28. Be2 {[%clk 0:01:08]}  Rxc2 {[%clk 0:00:52]} 29. Rxd8 {[%clk 0:01:01]}  Bxd8 {[%clk 0:00:53]} 30. Rd1 {[%clk 0:00:56]}  Rxe2 {[%clk 0:00:50]} 31. Rxd8 {[%clk 0:00:55]}  Rxb2 {[%clk 0:00:51]} 32. Ra8 {[%clk 0:00:53]}  Bc4 {[%clk 0:00:48]} 33. Rxa6 {[%clk 0:00:51]}  b4 {[%clk 0:00:44]} 34. Ra7+ {[%clk 0:00:45]}  Kh6 {[%clk 0:00:43]} 35. a4 {[%clk 0:00:41]}  Bd3 {[%clk 0:00:43]} 36. a5 {[%clk 0:00:36]}  Bxe4 {[%clk 0:00:43]} 37. Ng1 {[%clk 0:00:30]}  Rxg2+ {[%clk 0:00:42]} 0-1


[Site "https://www.chess.com"]

[Event "Titled Tuesday Blitz February 28 Late 2023"]
[White "Prieto Aranguren, Alain"]
[Black "Yeritsyan, Hayk"]
[WhiteFideId "2268906"]
[BlackFideId "13307320"]
[WhiteElo "2209"]
[BlackElo "2459"]
[Result "0-1"]
[Round "07"]
[TimeControl "180+2"]
[Date "2023.02.28"]
[WhiteClock "0:00:17"]
[BlackClock "0:00:26"]

1. d4 {[%clk 0:03:00]}  d5 {[%clk 0:02:58]} 2. c4 {[%clk 0:02:50]}  e6 {[%clk 0:02:58]} 3. Nc3 {[%clk 0:02:49]}  Nf6 {[%clk 0:02:58]} 4. cxd5 {[%clk 0:02:48]}  Nxd5 {[%clk 0:02:57]} 5. e4 {[%clk 0:02:47]}  Nxc3 {[%clk 0:02:56]} 6. bxc3 {[%clk 0:02:48]}  c5 {[%clk 0:02:54]} 7. Nf3 {[%clk 0:02:47]}  cxd4 {[%clk 0:02:54]} 8. cxd4 {[%clk 0:02:47]}  Be7 {[%clk 0:02:55]} 9. Bc4 {[%clk 0:02:42]}  O-O {[%clk 0:02:55]} 10. O-O {[%clk 0:02:42]}  Nc6 {[%clk 0:02:50]} 11. Be3 {[%clk 0:02:38]}  Bf6 {[%clk 0:02:48]} 12. Rc1 {[%clk 0:02:27]}  Bd7 {[%clk 0:02:42]} 13. d5 {[%clk 0:02:19]}  exd5 {[%clk 0:02:26]} 14. Bxd5 {[%clk 0:02:15]}  Re8 {[%clk 0:02:21]} 15. Nd4 {[%clk 0:02:07]}  Nxd4 {[%clk 0:02:13]} 16. Bxd4 {[%clk 0:02:07]}  Bxd4 {[%clk 0:02:13]} 17. Qxd4 {[%clk 0:02:06]}  Bc6 {[%clk 0:02:14]} 18. Rfd1 {[%clk 0:02:05]}  Bxd5 {[%clk 0:02:13]} 19. exd5 {[%clk 0:01:58]}  Qd6 {[%clk 0:02:11]} 20. g3 {[%clk 0:01:54]}  h6 {[%clk 0:01:58]} 21. Rc3 {[%clk 0:01:46]}  Re5 {[%clk 0:01:49]} 22. Re3 {[%clk 0:01:39]}  Rxe3 {[%clk 0:01:39]} 23. Qxe3 {[%clk 0:01:34]}  b6 {[%clk 0:01:38]} 24. Qc3 {[%clk 0:01:21]}  Rd8 {[%clk 0:01:34]} 25. Qc4 {[%clk 0:01:17]}  Qc5 {[%clk 0:01:31]} 26. Qe4 {[%clk 0:01:05]}  Rd6 {[%clk 0:01:24]} 27. Qe8+ {[%clk 0:01:01]}  Kh7 {[%clk 0:01:24]} 28. Qxf7 {[%clk 0:01:01]}  Rf6 {[%clk 0:01:24]} 29. Qh5 {[%clk 0:00:52]}  Qxf2+ {[%clk 0:01:10]} 30. Kh1 {[%clk 0:00:52]}  Rf5 {[%clk 0:00:58]} 31. Qxf5+ {[%clk 0:00:28]}  Qxf5 {[%clk 0:00:57]} 32. Kg1 {[%clk 0:00:28]}  Qd7 {[%clk 0:00:44]} 33. d6 {[%clk 0:00:26]}  Kg6 {[%clk 0:00:45]} 34. Kf2 {[%clk 0:00:27]}  Kf6 {[%clk 0:00:45]} 35. Ke3 {[%clk 0:00:27]}  Ke6 {[%clk 0:00:46]} 36. Rd4 {[%clk 0:00:27]}  b5 {[%clk 0:00:35]} 37. Re4+ {[%clk 0:00:23]}  Kxd6 {[%clk 0:00:34]} 38. Rd4+ {[%clk 0:00:23]}  Kc6 {[%clk 0:00:35]} 39. Rxd7 {[%clk 0:00:23]}  Kxd7 {[%clk 0:00:36]} 40. Kd4 {[%clk 0:00:24]}  Kd6 {[%clk 0:00:36]} 41. h4 {[%clk 0:00:21]}  g5 {[%clk 0:00:32]} 42. h5 {[%clk 0:00:21]}  a5 {[%clk 0:00:32]} 43. g4 {[%clk 0:00:18]}  b4 {[%clk 0:00:26]} 44. Kc4 {[%clk 0:00:18]}  Kc6 {[%clk 0:00:27]} 45. Kd4 {[%clk 0:00:18]}  Kb5 {[%clk 0:00:23]} 46. Kd5 {[%clk 0:00:17]}  a4 {[%clk 0:00:24]} 47. Kd4 {[%clk 0:00:16]}  b3 {[%clk 0:00:25]} 48. axb3 {[%clk 0:00:16]}  axb3 {[%clk 0:00:25]} 49. Kc3 {[%clk 0:00:16]}  Ka4 {[%clk 0:00:26]} 50. Kb2 {[%clk 0:00:17]}  Kb4 {[%clk 0:00:26]} 51. Kb1 {[%clk 0:00:17]}  Kc3 {[%clk 0:00:26]} 0-1


[Site "https://www.chess.com"]

[Event "Titled Tuesday Blitz February 28 Late 2023"]
[White "Awoki, Daniel Teidi"]
[Black "Dudzinski, Pawel"]
[WhiteFideId "2100827"]
[BlackFideId "1117890"]
[WhiteElo "2083"]
[BlackElo "2099"]
[Result "1/2-1/2"]
[Round "07"]
[TimeControl "180+2"]
[Date "2023.02.28"]
[WhiteClock "0:00:10"]
[BlackClock "0:00:07"]

1. e4 {[%clk 0:03:00]}  c6 {[%clk 0:02:57]} 2. d4 {[%clk 0:03:00]}  d5 {[%clk 0:02:58]} 3. exd5 {[%clk 0:03:01]}  cxd5 {[%clk 0:02:59]} 4. c4 {[%clk 0:03:02]}  Nf6 {[%clk 0:02:58]} 5. Nc3 {[%clk 0:03:02]}  g6 {[%clk 0:02:56]} 6. cxd5 {[%clk 0:03:02]}  Nxd5 {[%clk 0:02:55]} 7. Bc4 {[%clk 0:03:01]}  Nb6 {[%clk 0:02:56]} 8. Bb3 {[%clk 0:03:01]}  Bg7 {[%clk 0:02:56]} 9. Nge2 {[%clk 0:03:00]}  O-O {[%clk 0:02:57]} 10. O-O {[%clk 0:03:00]}  Bg4 {[%clk 0:02:57]} 11. f3 {[%clk 0:03:00]}  Bf5 {[%clk 0:02:58]} 12. Be3 {[%clk 0:03:01]}  Nc6 {[%clk 0:02:55]} 13. d5 {[%clk 0:02:56]}  Na5 {[%clk 0:02:55]} 14. Bf2 {[%clk 0:02:41]}  Nxb3 {[%clk 0:02:53]} 15. axb3 {[%clk 0:02:42]}  a6 {[%clk 0:02:47]} 16. g4 {[%clk 0:02:34]}  Bd7 {[%clk 0:02:45]} 17. Qd2 {[%clk 0:02:31]}  Nc8 {[%clk 0:02:44]} 18. Na4 {[%clk 0:02:24]}  Bxa4 {[%clk 0:02:30]} 19. bxa4 {[%clk 0:02:21]}  Nd6 {[%clk 0:02:30]} 20. Rac1 {[%clk 0:02:16]}  Qd7 {[%clk 0:02:30]} 21. b3 {[%clk 0:02:15]}  Rac8 {[%clk 0:02:25]} 22. Nf4 {[%clk 0:02:06]}  Bh6 {[%clk 0:02:22]} 23. Be3 {[%clk 0:02:04]}  Bg7 {[%clk 0:02:07]} 24. Nd3 {[%clk 0:02:02]}  Rxc1 {[%clk 0:01:57]} 25. Rxc1 {[%clk 0:02:01]}  Rc8 {[%clk 0:01:57]} 26. Nc5 {[%clk 0:01:58]}  Qd8 {[%clk 0:01:53]} 27. Ne4 {[%clk 0:01:48]}  Ne8 {[%clk 0:01:36]} 28. Rxc8 {[%clk 0:01:38]}  Qxc8 {[%clk 0:01:37]} 29. Qb4 {[%clk 0:01:38]}  Qd7 {[%clk 0:01:36]} 30. Nc5 {[%clk 0:01:31]}  Qxd5 {[%clk 0:01:34]} 31. Qxb7 {[%clk 0:01:31]}  Qd1+ {[%clk 0:01:34]} 32. Kg2 {[%clk 0:01:29]}  Qe2+ {[%clk 0:01:31]} 33. Bf2 {[%clk 0:01:26]}  Bd4 {[%clk 0:01:30]} 34. Ne4 {[%clk 0:01:26]}  Nd6 {[%clk 0:01:25]} 35. Qb8+ {[%clk 0:01:16]}  Kg7 {[%clk 0:01:24]} 36. Kg1 {[%clk 0:00:36]}  Bxf2+ {[%clk 0:01:12]} 37. Nxf2 {[%clk 0:00:37]}  Qxf3 {[%clk 0:01:12]} 38. Qb6 {[%clk 0:00:29]}  h5 {[%clk 0:00:59]} 39. Qd4+ {[%clk 0:00:28]}  Qf6 {[%clk 0:00:52]} 40. Qxf6+ {[%clk 0:00:26]}  Kxf6 {[%clk 0:00:53]} 41. gxh5 {[%clk 0:00:26]}  g5 {[%clk 0:00:53]} 42. Nd3 {[%clk 0:00:24]}  Ne4 {[%clk 0:00:46]} 43. Kg2 {[%clk 0:00:23]}  g4 {[%clk 0:00:45]} 44. b4 {[%clk 0:00:23]}  Kg5 {[%clk 0:00:45]} 45. h3 {[%clk 0:00:21]}  gxh3+ {[%clk 0:00:38]} 46. Kxh3 {[%clk 0:00:20]}  Kxh5 {[%clk 0:00:38]} 47. Nc5 {[%clk 0:00:19]}  Nc3 {[%clk 0:00:15]} 48. Kg3 {[%clk 0:00:19]}  e5 {[%clk 0:00:13]} 49. Kf3 {[%clk 0:00:19]}  f5 {[%clk 0:00:13]} 50. Ke3 {[%clk 0:00:19]}  f4+ {[%clk 0:00:13]} 51. Kd3 {[%clk 0:00:20]}  f3 {[%clk 0:00:11]} 52. Ke3 {[%clk 0:00:16]}  e4 {[%clk 0:00:11]} 53. Nxe4 {[%clk 0:00:14]}  Nxe4 {[%clk 0:00:11]} 54. Kxf3 {[%clk 0:00:13]}  Nc3 {[%clk 0:00:11]} 55. b5 {[%clk 0:00:11]}  Nxb5 {[%clk 0:00:06]} 56. axb5 {[%clk 0:00:10]}  axb5 {[%clk 0:00:07]} 57. Ke4 {[%clk 0:00:10]}  Kg6 {[%clk 0:00:06]} 58. Kd5 {[%clk 0:00:10]}  Kf5 {[%clk 0:00:07]} 59. Kc5 {[%clk 0:00:10]}  b4 {[%clk 0:00:07]} 60. Kxb4 {[%clk 0:00:10]} 1/2-1/2


[Site "https://www.chess.com"]

[Event "Titled Tuesday Blitz February 28 Late 2023"]
[White "Clawitter, Craig"]
[Black "Mikhalsky, Vladimir"]
[WhiteFideId "2023105"]
[BlackFideId "14144352"]
[WhiteElo "2263"]
[BlackElo "2272"]
[Result "1-0"]
[Round "07"]
[TimeControl "180+2"]
[Date "2023.02.28"]
[WhiteClock "0:00:08"]
[BlackClock "0:00:01"]

1. e4 {[%clk 0:03:00]}  g6 {[%clk 0:02:59]} 2. d4 {[%clk 0:03:00]}  Bg7 {[%clk 0:02:59]} 3. Nc3 {[%clk 0:03:01]}  d6 {[%clk 0:02:59]} 4. Be3 {[%clk 0:03:02]}  Nf6 {[%clk 0:02:58]} 5. Qd2 {[%clk 0:03:02]}  a6 {[%clk 0:02:57]} 6. Nf3 {[%clk 0:02:54]}  Ng4 {[%clk 0:02:54]} 7. Bg5 {[%clk 0:02:54]}  h6 {[%clk 0:02:54]} 8. Bh4 {[%clk 0:02:54]}  Nc6 {[%clk 0:02:50]} 9. h3 {[%clk 0:02:35]}  Nf6 {[%clk 0:02:49]} 10. Bd3 {[%clk 0:02:35]}  e5 {[%clk 0:02:46]} 11. dxe5 {[%clk 0:02:04]}  dxe5 {[%clk 0:02:45]} 12. O-O-O {[%clk 0:01:48]}  Be6 {[%clk 0:02:38]} 13. Kb1 {[%clk 0:01:47]}  Qe7 {[%clk 0:02:33]} 14. Nd5 {[%clk 0:01:45]}  Bxd5 {[%clk 0:02:24]} 15. exd5 {[%clk 0:01:46]}  Nb4 {[%clk 0:02:23]} 16. Nxe5 {[%clk 0:01:35]}  O-O-O {[%clk 0:02:07]} 17. Nxf7 {[%clk 0:01:25]}  Rxd5 {[%clk 0:01:21]} 18. Nxh8 {[%clk 0:01:18]}  Nxd3 {[%clk 0:01:21]} 19. Nxg6 {[%clk 0:01:08]}  Qf7 {[%clk 0:01:14]} 20. Nf4 {[%clk 0:00:44]}  Ne4 {[%clk 0:01:08]} 21. Nxd5 {[%clk 0:00:28]}  Nxd2+ {[%clk 0:01:06]} 22. Rxd2 {[%clk 0:00:29]}  Nxb2 {[%clk 0:00:49]} 23. Re1 {[%clk 0:00:12]}  b6 {[%clk 0:00:43]} 24. Re7 {[%clk 0:00:10]}  Qg6 {[%clk 0:00:15]} 25. Rxc7+ {[%clk 0:00:10]}  Kb8 {[%clk 0:00:15]} 26. Bg3 {[%clk 0:00:06]}  Ka8 {[%clk 0:00:14]} 27. Ne7 {[%clk 0:00:05]}  Qe8 {[%clk 0:00:11]} 28. Rc8+ {[%clk 0:00:05]}  Qxc8 {[%clk 0:00:11]} 29. Nxc8 {[%clk 0:00:05]}  Nc4 {[%clk 0:00:11]} 30. Nd6 {[%clk 0:00:06]}  Nxd2+ {[%clk 0:00:11]} 31. Kc1 {[%clk 0:00:06]}  Nf1 {[%clk 0:00:11]} 32. Nf5 {[%clk 0:00:06]}  Bf8 {[%clk 0:00:10]} 33. Kd1 {[%clk 0:00:06]}  Bb4 {[%clk 0:00:09]} 34. Ke2 {[%clk 0:00:05]}  Nd2 {[%clk 0:00:09]} 35. Nxh6 {[%clk 0:00:05]}  Ne4 {[%clk 0:00:08]} 36. Kf3 {[%clk 0:00:04]}  Nc3 {[%clk 0:00:08]} 37. Bf4 {[%clk 0:00:03]}  Nxa2 {[%clk 0:00:07]} 38. Nf5 {[%clk 0:00:03]}  Nc3 {[%clk 0:00:07]} 39. h4 {[%clk 0:00:03]}  a5 {[%clk 0:00:07]} 40. h5 {[%clk 0:00:03]}  Bf8 {[%clk 0:00:06]} 41. Bd6 {[%clk 0:00:02]}  Bxd6 {[%clk 0:00:03]} 42. Nxd6 {[%clk 0:00:03]}  Nd5 {[%clk 0:00:03]} 43. h6 {[%clk 0:00:03]}  Nf6 {[%clk 0:00:03]} 44. Ne4 {[%clk 0:00:02]}  Nh7 {[%clk 0:00:03]} 45. g4 {[%clk 0:00:02]}  Kb7 {[%clk 0:00:03]} 46. Ke3 {[%clk 0:00:03]}  b5 {[%clk 0:00:02]} 47. f4 {[%clk 0:00:04]}  a4 {[%clk 0:00:03]} 48. g5 {[%clk 0:00:04]}  a3 {[%clk 0:00:03]} 49. Nc3 {[%clk 0:00:04]}  b4 {[%clk 0:00:02]} 50. Na2 {[%clk 0:00:05]}  Kc6 {[%clk 0:00:03]} 51. g6 {[%clk 0:00:05]}  Nf6 {[%clk 0:00:02]} 52. h7 {[%clk 0:00:05]}  Kb5 {[%clk 0:00:02]} 53. h8=Q {[%clk 0:00:05]}  Nd5+ {[%clk 0:00:01]} 54. Kd4 {[%clk 0:00:05]}  Nxf4 {[%clk 0:00:01]} 55. Qe5+ {[%clk 0:00:06]}  Ka4 {[%clk 0:00:01]} 56. Qxf4 {[%clk 0:00:06]}  b3 {[%clk 0:00:01]} 57. Kc3+ {[%clk 0:00:06]}  Ka5 {[%clk 0:00:01]} 58. Qb4+ {[%clk 0:00:07]}  Ka6 {[%clk 0:00:01]} 59. Qxa3+ {[%clk 0:00:07]}  Kb7 {[%clk 0:00:01]} 60. Qxb3+ {[%clk 0:00:08]}  Kc7 {[%clk 0:00:01]} 61. Qe6 {[%clk 0:00:08]} 1-0


[Site "https://www.chess.com"]

[Event "Titled Tuesday Blitz February 28 Late 2023"]
[White "Einarsson, Halldor Gretar"]
[Black "Nery Junior, Jose Antonio"]
[WhiteFideId "2300150"]
[BlackFideId "2104822"]
[WhiteElo "2126"]
[BlackElo "2197"]
[Result "0-1"]
[Round "07"]
[TimeControl "180+2"]
[Date "2023.02.28"]
[WhiteClock "0:00:01"]
[BlackClock "0:00:08"]

1. d4 {[%clk 0:03:00]}  d5 {[%clk 0:02:58]} 2. Nf3 {[%clk 0:02:59]}  c6 {[%clk 0:02:57]} 3. c4 {[%clk 0:02:56]}  Nf6 {[%clk 0:02:54]} 4. Nc3 {[%clk 0:02:51]}  e6 {[%clk 0:02:54]} 5. e3 {[%clk 0:02:50]}  Nbd7 {[%clk 0:02:46]} 6. Qc2 {[%clk 0:02:50]}  Bd6 {[%clk 0:02:42]} 7. Bd3 {[%clk 0:02:48]}  O-O {[%clk 0:02:34]} 8. O-O {[%clk 0:02:42]}  Qe7 {[%clk 0:02:31]} 9. e4 {[%clk 0:02:40]}  dxe4 {[%clk 0:02:29]} 10. Nxe4 {[%clk 0:02:39]}  Nxe4 {[%clk 0:02:30]} 11. Bxe4 {[%clk 0:02:38]}  h6 {[%clk 0:02:29]} 12. Re1 {[%clk 0:02:37]}  Qf6 {[%clk 0:02:07]} 13. Qe2 {[%clk 0:02:21]}  e5 {[%clk 0:02:02]} 14. d5 {[%clk 0:02:18]}  Nc5 {[%clk 0:01:55]} 15. dxc6 {[%clk 0:02:06]}  Nxe4 {[%clk 0:01:51]} 16. Qxe4 {[%clk 0:02:05]}  Bf5 {[%clk 0:01:48]} 17. Qe3 {[%clk 0:01:31]}  bxc6 {[%clk 0:01:43]} 18. c5 {[%clk 0:01:24]}  Bc7 {[%clk 0:01:38]} 19. Bd2 {[%clk 0:01:17]}  Rfe8 {[%clk 0:01:19]} 20. Bc3 {[%clk 0:01:15]}  Rad8 {[%clk 0:01:16]} 21. Rad1 {[%clk 0:01:14]}  Rd5 {[%clk 0:01:09]} 22. b4 {[%clk 0:01:04]}  Bg4 {[%clk 0:01:05]} 23. Rxd5 {[%clk 0:00:47]}  cxd5 {[%clk 0:01:06]} 24. Nd2 {[%clk 0:00:26]}  Re6 {[%clk 0:00:51]} 25. f3 {[%clk 0:00:23]}  d4 {[%clk 0:00:44]} 26. Ne4 {[%clk 0:00:21]}  Qg6 {[%clk 0:00:29]} 27. Qe2 {[%clk 0:00:16]}  dxc3 {[%clk 0:00:10]} 28. fxg4 {[%clk 0:00:16]}  Re7 {[%clk 0:00:08]} 29. Rc1 {[%clk 0:00:15]}  Rd7 {[%clk 0:00:08]} 30. Rxc3 {[%clk 0:00:15]}  Rd4 {[%clk 0:00:08]} 31. Ng3 {[%clk 0:00:12]}  Kh7 {[%clk 0:00:08]} 32. Qc2 {[%clk 0:00:10]}  e4 {[%clk 0:00:08]} 33. Re3 {[%clk 0:00:08]}  Bf4 {[%clk 0:00:08]} 34. Rxe4 {[%clk 0:00:07]}  Bxg3 {[%clk 0:00:08]} 35. hxg3 {[%clk 0:00:01]}  Rxe4 {[%clk 0:00:09]} 36. c6 {[%clk 0:00:01]}  Re1+ {[%clk 0:00:08]} 0-1


[Site "https://www.chess.com"]